bitfinex/quotes_ETHUSD_20251128
["timestamp","ask_amount","ask_price","bid_price","bid_amount"]
[1764351582729,0.405504,3024.3,3023.5,5.66682249]
[1764351582730,1.0315055,3024.2,3023.5,5.66682249]
[1764351582929,0.30591139,3024.1,3023.5,1.502]
[1764351583094,0.30591139,3024.0,3023.5,1.502]
[1764351583436,0.30591139,3024.1,3023.5,1.502]
[1764351583732,0.30591139,3024.0,3023.5,1.502]
[1764351583934,0.30591139,3024.1,3023.5,1.502]
[1764351584260,0.30599282,3024.0,3023.5,4.80939806]
[1764351584544,0.30599282,3024.1,3023.5,2.35940244]
[1764351584751,0.30599282,3024.0,3023.5,5.66682438]
[1764351585044,0.30599282,3024.2,3023.5,4.80942194]
[1764351585234,0.30599282,3024.1,3023.5,4.80942194]
[1764351585562,0.72559411,3024.2,3023.5,5.66682454]
[1764351585747,0.30600178,3024.1,3023.5,5.66682454]
[1764351586132,0.30599155,3024.0,3023.5,2.3594026]
[1764351586328,0.30599155,3024.1,3023.5,1.502]
[1764351586535,0.30599155,3024.0,3023.5,1.502]
[1764351586730,0.30599155,3024.1,3023.5,1.502]
[1764351587045,0.30599155,3024.0,3023.5,1.502]
[1764351587212,0.30599155,3024.1,3023.5,1.502]
[1764351587544,0.30599155,3024.0,3023.5,1.502]
[1764351587910,0.77569155,3024.0,3023.5,1.29]
[1764351588111,0.4697,3024.0,3023.5,1.29]
[1764351588447,3.90599166,3023.9,3023.5,1.29]
[1764351588651,4.37569166,3023.9,3023.5,1.29]
[1764351588857,0.72559411,3024.2,3023.5,1.29]
[1764351589171,0.71152676,3024.1,3023.5,1.747]
[1764351589314,0.30602276,3024.0,3023.6,0.03307315]
[1764351589717,0.77572276,3024.0,3023.5,1.29]
[1764351589930,0.4697,3024.0,3023.5,1.29]
[1764351590325,0.4697,3024.0,3023.2,3.97666056]
[1764351590326,0.4697,3024.0,3023.3,1.29]
[1764351590526,0.4697,3024.0,3023.3,1.83522606]
[1764351592520,0.1935,3023.9,3023.3,1.83522606]
[1764351593216,0.599004,3023.9,3023.3,1.29]
[1764351593415,0.617504,3023.8,3023.3,1.29]
[1764351593643,0.617504,3023.8,3023.1,0.1856]
[1764351593644,0.4697,3023.7,3023.1,1.4756]
[1764351593842,0.405504,3023.6,3023.1,0.001]
[1764351594054,0.405504,3023.6,3023.3,0.001]
[1764351594260,0.4697,3023.5,3023.3,0.001]
[1764351594550,0.4512,3023.4,3023.3,0.001]
[1764351594960,0.9209,3023.4,3023.3,0.001]
[1764351595514,0.4512,3023.4,3023.3,0.001]
[1764351596151,0.9209,3023.4,3023.3,0.001]
[1764351596457,0.212,3023.5,3023.3,0.001]
[1764351596625,0.4512,3023.4,3023.3,0.001]
[1764351597139,1.326404,3023.4,3023.3,0.001]
[1764351597664,0.405504,3023.4,3023.3,0.4579]
[1764351597814,0.212,3023.5,3023.3,0.4579]
[1764351598465,0.51804375,3023.5,3023.3,0.001]
[1764351598627,0.212,3023.5,3023.3,0.001]
[1764351599020,0.51802706,3023.5,3023.3,0.001]
[1764351599444,0.212,3023.5,3023.3,0.001]
[1764351599886,0.9209,3023.4,3023.3,0.001]
[1764351600058,1.22703091,3023.4,3023.3,0.001]
[1764351600648,1.63253491,3023.4,3023.3,0.001]
[1764351600843,1.16283491,3023.4,3023.3,0.001]
[1764351601082,0.71163491,3023.4,3023.3,0.4579]
[1764351601286,0.0413276,3024.3,3023.3,0.9149]
[1764351601579,0.212,3024.1,3023.3,0.001]
[1764351601766,0.3064902,3024.0,3023.3,0.458]
[1764351601942,0.3478178,3023.9,3023.3,0.001]
[1764351602147,0.405504,3023.7,3023.3,0.001]
[1764351602390,0.4512,3023.4,3023.3,0.001]
[1764351603180,0.9209,3023.4,3023.3,0.001]
[1764351603380,4.94043603,3023.4,3023.3,0.001]
[1764351604143,1.63290147,3023.4,3023.3,0.001]
[1764351604356,4.94043603,3023.4,3023.3,0.001]
[1764351604546,0.0874,3023.3,3023.2,1.284014]
[1764351604746,0.39389747,3023.3,3023.2,1.284014]
[1764351606385,0.30649747,3023.3,3023.2,1.284014]
[1764351606587,0.212,3023.4,3023.2,2.249914]
[1764351606794,3.30655816,3024.3,3023.2,2.249914]
[1764351606795,2.440406,3024.3,3023.3,1.2360588]
[1764351607078,0.405504,3024.0,3023.3,0.7681588]
[1764351607279,0.405504,3024.0,3023.2,1.284014]
[1764351607280,0.4954,3023.4,3023.2,1.284014]
[1764351607480,0.002,3024.4,3023.9,0.4679]
[1764351607694,0.002,3024.4,3024.3,0.6655]
[1764351608051,0.002,3024.4,3024.3,1.1635]
[1764351608747,0.002,3024.4,3024.3,0.6655]
[1764351608974,0.002,3024.4,3024.3,0.4679]
[1764351610282,0.002,3024.4,3024.3,4.64991057]
[1764351610648,0.002,3024.4,3024.3,0.3774603]
[1764351610845,0.4974,3024.4,3023.9,0.1976]
[1764351611049,0.4974,3024.4,3023.9,4.00255582]
[1764351611050,0.002,3024.4,3023.9,4.00255582]
[1764351611280,0.002,3024.4,3023.9,0.6956]
[1764351611578,0.002,3024.4,3023.9,0.1976]
[1764351611955,0.4954,3024.0,3023.5,0.212]
[1764351612157,0.212,3024.1,3023.9,0.4679]
[1764351612376,0.212,3024.1,3023.5,0.498]
[1764351612752,0.212,3024.1,3023.3,0.001]
[1764351612753,0.7290276,3024.1,3023.3,0.001]
[1764351612963,4.03584248,3024.1,3023.3,0.001]
[1764351613591,0.405504,3023.9,3023.3,0.001]
[1764351613756,0.405504,3023.7,3023.3,0.001]
[1764351613956,0.881204,3023.7,3023.3,0.001]
[1764351614252,0.4954,3023.4,3023.3,0.001]
[1764351615966,0.9711,3023.4,3023.3,0.001]
[1764351616273,5.81597321,3023.4,3023.3,0.001]
[1764351617085,5.34027321,3023.4,3023.3,0.001]
[1764351617279,5.92697321,3023.4,3023.3,0.001]
[1764351617587,6.02697321,3023.4,3023.3,0.001]
[1764351619221,14.04341421,3023.4,3023.3,0.001]
[1764351619370,6.02697321,3023.4,3023.3,0.001]
[1764351619694,16.11923021,3023.4,3023.3,0.001]
[1764351620605,17.10264321,3023.4,3023.3,0.001]
[1764351620816,6.02697321,3023.4,3023.3,0.001]
[1764351620968,9.44436621,3023.4,3023.3,0.001]
[1764351621168,6.02697321,3023.4,3023.3,0.001]
[1764351621388,24.98125021,3023.4,3023.3,0.001]
[1764351621615,22.90777921,3023.4,3023.3,0.001]
[1764351622512,28.01958121,3023.4,3023.3,0.001]
[1764351622684,24.26701521,3023.4,3023.3,0.001]
[1764351622886,16.15550321,3023.4,3023.3,0.001]
[1764351623083,14.67433521,3023.4,3023.3,0.001]
[1764351623299,6.02797321,3023.4,3023.3,0.001]
[1764351623476,8.35740821,3023.4,3023.3,0.001]
[1764351624505,27.24131721,3023.4,3023.3,0.001]
[1764351624706,24.22564921,3023.4,3023.3,0.001]
[1764351625635,35.28275221,3023.4,3023.3,0.001]
[1764351625844,34.29461621,3023.4,3023.3,0.001]
[1764351626155,33.60691621,3023.4,3023.3,0.001]
[1764351626440,0.214,3024.7,3023.3,7.62243025]
[1764351626628,0.30778242,3024.7,3024.3,0.6549]
[1764351627004,0.002,3024.7,3024.3,1.1476]
[1764351628002,0.4686,3024.4,3023.4,0.97424303]
[1764351628206,0.405504,3024.2,3023.5,0.4927]
[1764351628410,0.212,3024.1,3023.1,0.1739]
[1764351628758,0.212,3024.1,3023.2,0.4927]
[1764351628759,0.405504,3023.9,3023.2,0.4927]
[1764351628906,0.405504,3023.7,3023.2,0.4927]
[1764351629106,0.212,3023.6,3023.2,0.4927]
[1764351629406,0.212,3023.6,3023.3,0.4937]
[1764351630015,0.002,3023.4,3023.3,0.4937]
[1764351630254,0.002,3023.4,3023.3,0.001]
[1764351631230,0.874104,3023.4,3023.3,0.001]
[1764351631428,4.18163856,3023.4,3023.3,0.001]
[1764351631657,5.49483267,3023.4,3023.3,0.001]
[1764351631954,5.80041775,3023.4,3023.3,0.001]
[1764351632156,12.77333175,3023.4,3023.3,0.001]
[1764351632355,9.73239675,3023.4,3023.3,0.001]
[1764351632927,9.22983375,3023.4,3023.3,0.001]
[1764351633135,9.61583175,3023.4,3023.3,0.001]
[1764351634250,16.61957875,3023.4,3023.3,0.001]
[1764351634765,10.16360075,3023.4,3023.3,0.001]
[1764351635171,5.80041775,3023.4,3023.3,0.001]
[1764351635474,10.92526935,3023.4,3023.3,0.001]
[1764351635771,11.21462237,3023.4,3023.3,0.001]
[1764351636073,10.25672975,3023.4,3023.3,0.001]
[1764351636261,5.99001775,3023.4,3023.3,0.001]
[1764351636435,11.38710835,3023.4,3023.3,0.001]
[1764351636638,11.34578075,3023.4,3023.3,0.001]
[1764351637479,11.68087675,3023.4,3023.3,0.001]
[1764351637985,11.17467675,3023.4,3023.3,0.001]
[1764351638467,10.79407675,3023.4,3023.3,0.001]
[1764351639581,13.32879575,3023.4,3023.3,0.001]
[1764351639937,11.20479775,3023.4,3023.3,0.001]
[1764351640554,11.20049175,3023.4,3023.3,0.001]
[1764351641587,27.43800975,3023.4,3023.3,0.001]
[1764351642150,27.43900975,3023.4,3023.3,0.001]
[1764351642450,31.75044175,3023.4,3023.3,0.001]
[1764351642848,27.55772937,3023.4,3023.3,0.001]
[1764351643053,0.002,3023.4,3023.3,0.9634]
[1764351643279,0.002,3023.8,3023.3,7.62693025]
[1764351643454,0.002,3023.8,3023.7,0.4707]
[1764351643882,0.002,3023.8,3023.7,0.9624]
[1764351644984,0.002,3023.8,3023.3,0.001]
[1764351644985,0.1,3023.4,3023.3,0.001]
[1764351645180,29.82267787,3023.4,3023.3,0.001]
[1764351645495,34.47554575,3023.4,3023.3,0.001]
[1764351646052,36.05651972,3023.4,3023.3,0.001]
[1764351646455,34.84659327,3023.4,3023.3,0.001]
[1764351646669,33.19072033,3023.4,3023.3,0.001]
[1764351646880,33.94768046,3023.4,3023.3,0.001]
[1764351647193,43.52228046,3023.4,3023.3,0.001]
[1764351647490,13.52228046,3023.4,3023.3,0.001]
[1764351647790,43.52228046,3023.4,3023.3,0.001]
[1764351648686,41.63364046,3023.4,3023.3,0.001]
[1764351649205,41.12260446,3023.4,3023.3,0.001]
[1764351649366,40.57764433,3023.4,3023.3,0.001]
[1764351649991,12.97732033,3023.4,3023.3,0.001]
[1764351650161,42.37263733,3023.4,3023.3,0.001]
[1764351650564,32.62540133,3023.4,3023.3,0.001]
[1764351650998,36.77881633,3023.4,3023.3,0.001]
[1764351651175,35.44612333,3023.4,3023.3,0.001]
[1764351651796,35.13984654,3023.4,3023.3,0.001]
[1764351652107,29.81602415,3023.4,3023.3,0.001]
[1764351652311,30.02802415,3023.4,3023.3,0.001]
[1764351652663,30.02802415,3023.4,3022.9,0.001]
[1764351652664,30.1,3023.0,3022.9,0.001]
[1764351652876,36.94196997,3023.0,3022.9,0.001]
[1764351653198,39.33596997,3023.0,3022.9,0.001]
[1764351653974,9.33596997,3023.0,3022.9,0.001]
[1764351654177,36.61854597,3023.0,3022.9,0.001]
[1764351654791,40.2571988,3023.0,3022.9,0.001]
[1764351655196,42.9746228,3023.0,3022.9,0.001]
[1764351656113,1.13109811,3022.9,3021.8,0.001]
[1764351656435,32.01657873,3022.7,3021.8,0.001]
[1764351656596,35.63062086,3022.7,3021.8,0.001]
[1764351656918,36.09682086,3022.7,3021.8,0.001]
[1764351657622,38.22530898,3022.6,3021.8,0.001]
[1764351657794,1.56177873,3022.3,3021.8,0.001]
[1764351658138,31.56177873,3021.9,3021.8,0.001]
[1764351658292,39.14175059,3021.9,3021.8,0.001]
[1764351658486,39.60795059,3021.9,3021.8,0.001]
[1764351658693,43.2380687,3021.9,3021.8,0.001]
[1764351658988,35.24471606,3021.9,3021.8,0.001]
[1764351659298,0.312,3022.3,3021.8,0.9634]
[1764351659605,0.1,3022.0,3021.8,0.9634]
[1764351659810,0.505504,3021.9,3021.8,0.4717]
[1764351659987,7.55073811,3021.9,3021.8,0.001]
[1764351660184,1.90579811,3021.9,3021.8,0.001]
[1764351660386,9.72082931,3021.9,3021.8,0.001]
[1764351660790,13.49620565,3021.9,3021.8,0.001]
[1764351661231,25.62330165,3021.9,3021.8,0.001]
[1764351661415,19.32145565,3021.9,3021.8,0.001]
[1764351661589,5.05765165,3021.9,3021.8,0.001]
[1764351661790,11.67197991,3021.9,3021.8,0.4717]
[1764351662086,10.17513565,3021.9,3021.8,0.001]
[1764351662293,9.26761565,3021.9,3021.8,0.001]
[1764351662525,4.22537031,3021.9,3021.8,0.4717]
[1764351662840,0.002,3023.8,3022.3,0.6298]
[1764351663124,0.30552136,3023.7,3022.4,0.4917]
[1764351663341,0.30552136,3023.7,3022.5,0.89549007]
[1764351663542,0.002,3023.8,3022.5,0.89549007]
[1764351663543,0.72559411,3023.5,3022.5,0.89549007]
[1764351663724,0.72559411,3023.5,3022.6,0.4917]
[1764351663924,3.5221022,3023.8,3023.4,0.6644]
[1764351664243,0.002,3023.8,3023.7,0.4707]
[1764351664606,0.002,3023.8,3023.7,0.9624]
[1764351666043,0.1,3023.5,3022.1,0.1652]
[1764351666347,0.405504,3022.4,3022.1,0.1652]
[1764351666834,1.13109811,3022.2,3022.1,0.1652]
[1764351667415,1.13109811,3022.2,3022.1,0.1662]
[1764351667815,1.13109811,3022.3,3022.1,0.1662]
[1764351668257,6.52971811,3022.2,3022.1,0.001]
[1764351668447,6.74271811,3022.2,3022.1,0.001]
[1764351668645,7.14819267,3022.2,3022.1,0.001]
[1764351668846,10.45701105,3022.2,3022.1,0.001]
[1764351669215,5.52599105,3022.2,3022.1,0.001]
[1764351669525,23.13707905,3022.2,3022.1,0.001]
[1764351669726,23.60157905,3022.2,3022.1,0.001]
[1764351670427,22.61757405,3022.2,3022.1,0.001]
[1764351670633,19.30491105,3022.2,3022.1,0.001]
[1764351671265,19.76941105,3022.2,3022.1,0.001]
[1764351671438,30.55849967,3022.2,3022.1,0.001]
[1764351671837,29.76331905,3022.2,3022.1,0.001]
[1764351672337,36.32117167,3022.2,3022.1,0.001]
[1764351672853,36.37117167,3022.2,3022.1,0.001]
[1764351673373,35.99049105,3022.2,3022.1,0.001]
[1764351673539,22.68604505,3022.2,3022.1,0.001]
[1764351673740,23.09154905,3022.2,3022.1,0.001]
[1764351674035,22.87854905,3022.2,3022.1,0.001]
[1764351674240,23.09154905,3022.2,3022.1,0.001]
[1764351674479,35.37618605,3022.2,3022.1,0.001]
[1764351674782,3.4640972,3022.2,3022.1,0.001]
[1764351674938,7.80504505,3022.2,3022.1,0.001]
[1764351675141,8.21054905,3022.2,3022.1,0.001]
[1764351675369,0.002,3023.7,3022.1,1.1178]
[1764351675671,13.16806,3023.5,3022.2,0.4809]
[1764351675845,0.40585565,3023.4,3022.2,0.9455]
[1764351676050,0.1,3023.0,3022.2,0.9455]
[1764351676245,0.1,3023.0,3022.3,0.4646]
[1764351676568,2.168551,3023.0,3022.9,0.4809]
[1764351676767,7.67273505,3023.0,3022.9,0.4809]
[1764351677069,0.405504,3022.5,3022.1,0.1723]
[1764351677457,0.405504,3022.5,3022.1,0.6369]
[1764351677770,0.30572306,3022.5,3022.4,0.4809]
[1764351677935,4.08507311,3022.5,3022.4,0.4809]
[1764351678138,4.39079149,3022.5,3022.4,0.4809]
[1764351678366,4.08507311,3022.5,3022.4,0.4809]
[1764351678567,0.405504,3022.3,3022.1,0.6488]
[1764351678768,0.405504,3022.3,3022.2,0.4606]
[1764351679090,4.43983648,3022.3,3022.2,0.4606]
[1764351679238,1.13109811,3022.3,3022.2,0.4606]
[1764351679635,4.43983648,3022.3,3022.2,0.4606]
[1764351681175,1.13109811,3022.3,3022.2,0.4606]
[1764351681473,1.13109811,3022.3,3022.2,0.9371]
[1764351681883,4.43983648,3022.3,3022.2,0.4606]
[1764351684974,0.405504,3022.3,3022.2,0.9371]
[1764351685180,0.002,3022.4,3022.2,0.9371]
[1764351685386,3.35693879,3024.0,3022.2,0.9371]
[1764351685387,0.002,3023.8,3022.7,0.4606]
[1764351685583,0.002,3023.8,3022.8,0.4765]
[1764351685584,0.30778379,3023.7,3022.8,0.4765]
[1764351685794,0.30778379,3023.7,3023.6,0.6442]
[1764351685795,4.36173811,3023.7,3023.6,0.6442]
[1764351686097,6.1012974,3023.7,3023.6,0.6442]
[1764351686391,3.51968511,3023.7,3023.6,0.6442]
[1764351686581,6.5068014,3023.7,3023.6,0.6442]
[1764351686785,2.794091,3023.7,3023.6,0.6442]
[1764351686993,3.03120811,3023.7,3023.6,0.6442]
[1764351687183,6.74391851,3023.7,3023.6,0.6442]
[1764351687894,6.33841451,3023.7,3023.6,0.6442]
[1764351688300,3.43671211,3023.7,3023.6,0.6442]
[1764351688463,6.74391851,3023.7,3023.6,0.6442]
[1764351688666,9.42829351,3023.7,3023.6,0.6442]
[1764351688863,9.42829351,3023.7,3023.2,0.1836]
[1764351688864,0.405504,3023.4,3023.2,0.1836]
[1764351689367,3.71286021,3023.6,3023.3,0.4606]
[1764351689566,0.405504,3023.6,3023.3,0.4606]
[1764351689766,3.71284521,3023.6,3023.3,0.4606]
[1764351690392,7.02018642,3023.6,3023.2,0.1836]
[1764351690598,1.13109811,3023.6,3023.3,0.4765]
[1764351690801,1.13109811,3023.6,3023.0,0.1836]
[1764351690802,11.05307941,3023.6,3023.0,0.1836]
[1764351690973,6.61528792,3023.3,3022.5,0.4765]
[1764351691173,0.212,3023.2,3022.5,0.4765]
[1764351691607,0.407504,3023.7,3023.1,0.6442]
[1764351691903,7.28289215,3023.7,3023.6,0.4606]
[1764351692105,4.606,3023.5,3023.1,0.6601]
[1764351692278,1.13109811,3023.6,3023.1,0.6601]
[1764351692471,0.405504,3023.6,3023.2,0.4765]
[1764351692665,0.405504,3023.6,3023.5,0.4606]
[1764351692900,0.002,3023.7,3023.5,0.4606]
[1764351693103,0.002,3023.7,3023.6,0.9371]
[1764351693820,0.002,3023.7,3023.6,0.4606]
[1764351694033,0.002,3023.7,3023.6,0.9371]
[1764351695889,0.002,3023.7,3023.6,1.36155071]
[1764351696137,0.002,3023.7,3023.6,0.9371]
[1764351696291,0.002,3023.7,3023.6,4.24441578]
[1764351696495,0.002,3023.7,3023.6,0.9371]
[1764351699623,0.002,3023.7,3023.6,0.4606]
[1764351699926,0.002,3023.7,3023.6,0.936]
[1764351700333,0.002,3023.7,3023.6,0.4606]
[1764351700533,0.002,3023.7,3023.2,0.4754]
[1764351701231,0.002,3023.7,3023.2,0.89329288]
[1764351701528,0.002,3023.7,3023.2,0.4754]
[1764351701731,0.002,3023.7,3023.3,0.4754]
[1764351702303,0.002,3023.7,3023.1,0.1836]
[1764351702507,0.002,3023.7,3023.1,0.659]
[1764351703741,0.405504,3023.6,3023.1,0.659]
[1764351704236,0.405504,3023.6,3023.2,0.4754]
[1764351705123,0.405504,3023.6,3023.1,0.1836]
[1764351705528,1.62779811,3023.6,3022.9,0.1836]
[1764351705694,4.43850501,3023.6,3023.1,0.4754]
[1764351706651,1.13109811,3023.6,3023.5,0.4534]
[1764351706813,4.43841389,3023.6,3023.5,0.4534]
[1764351707522,0.002,3023.7,3023.5,0.9288]
[1764351707737,0.002,3023.7,3023.6,0.4534]
[1764351708616,0.002,3023.7,3023.6,0.9288]
[1764351710132,0.002,3023.7,3023.6,0.4534]
[1764351710651,0.002,3023.7,3023.6,0.9288]
[1764351710849,0.002,3023.7,3023.6,0.4534]
[1764351712249,0.30862438,3023.7,3023.6,0.4534]
[1764351712922,4.07175453,3023.7,3023.2,1.274014]
[1764351713148,0.30685043,3023.6,3023.2,1.80093516]
[1764351713358,3.76513015,3023.7,3023.2,2.27633516]
[1764351713658,0.30684872,3023.6,3023.2,2.27633516]
[1764351713839,0.002,3023.7,3023.6,0.4534]
[1764351714025,0.30884808,3023.7,3023.6,0.4534]
[1764351714552,0.30884808,3023.7,3023.6,0.9288]
[1764351715638,0.30884808,3023.7,3023.6,0.4534]
[1764351715879,0.30884808,3023.7,3023.6,0.9288]
[1764351716680,0.30884808,3023.7,3023.6,1.35242684]
[1764351716879,0.30884808,3023.7,3023.6,0.9288]
[1764351717182,0.30884808,3023.7,3023.2,3.30769364]
[1764351717389,0.30684808,3023.6,3023.2,3.78309364]
[1764351717558,0.30684808,3023.5,3022.9,0.1836]
[1764351717748,3.3092064,3023.7,3023.6,0.4534]
[1764351718075,0.30947751,3023.7,3023.6,0.4534]
[1764351718476,3.61668391,3023.7,3023.6,0.4534]
[1764351718678,0.30947751,3023.7,3023.3,0.4754]
[1764351718885,0.30747751,3023.6,3023.3,0.4754]
[1764351719089,0.30747751,3023.5,3023.3,0.85372533]
[1764351719388,3.30921233,3023.7,3023.3,0.85372533]
[1764351719571,0.30753502,3023.6,3023.3,0.85372533]
[1764351719759,0.30753502,3023.5,3023.3,0.85372533]
[1764351720058,0.002,3023.7,3023.3,0.4754]
[1764351720263,0.30755634,3023.6,3023.4,0.4534]
[1764351720458,0.30755634,3023.5,3023.4,0.4534]
[1764351720665,0.30755634,3023.5,3023.4,1.35245079]
[1764351720865,0.30755634,3023.5,3023.4,0.4534]
[1764351721182,0.30755634,3023.5,3023.4,0.9288]
[1764351721384,0.002,3023.7,3023.4,7.54386912]
[1764351721586,0.002,3023.7,3023.6,0.4534]
[1764351722054,0.002,3023.7,3023.6,2.202814]
[1764351722254,0.002,3023.7,3023.6,3.10580231]
[1764351723282,0.002,3023.7,3023.6,2.202814]
[1764351723785,0.002,3023.7,3023.6,1.727414]
[1764351723962,0.002,3023.7,3023.6,0.4534]
[1764351724286,0.71511841,3023.7,3023.6,0.4534]
[1764351724490,0.71511841,3023.7,3023.2,0.4754]
[1764351724650,0.30761441,3023.6,3023.1,0.212]
[1764351724850,0.30761441,3023.5,3023.1,0.212]
[1764351725052,0.30759941,3023.4,3023.1,0.212]
[1764351725257,0.30759941,3023.3,3022.9,0.1836]
[1764351725494,0.30759941,3023.2,3022.6,0.6698]
[1764351725669,0.30759941,3023.1,3022.6,0.6698]
[1764351725968,0.30759941,3023.0,3022.6,0.6698]
[1764351726167,0.405504,3023.4,3022.6,0.6698]
[1764351726487,0.3075409,3023.3,3022.7,3.30829542]
[1764351726691,0.3075409,3023.2,3022.6,3.97815767]
[1764351726864,0.3075409,3023.1,3022.8,0.39891577]
[1764351727085,0.3075409,3023.0,3022.8,0.39891577]
[1764351727295,3.30764396,3023.3,3022.8,0.39891577]
[1764351727588,0.30741511,3023.2,3022.8,0.39891577]
[1764351727807,0.30741511,3023.1,3022.8,0.39891577]
[1764351728086,6.61528792,3023.3,3022.8,0.001]
[1764351728087,0.30741511,3023.0,3022.8,0.001]
[1764351728302,0.30741511,3022.9,3022.8,0.001]
[1764351728465,0.30741511,3022.9,3022.8,0.5005]
[1764351729902,0.30741511,3022.9,3022.8,0.001]
[1764351730195,0.30741511,3022.9,3022.8,0.5005]
[1764351730581,0.71291911,3022.9,3022.8,0.001]
[1764351730778,0.71265716,3022.9,3022.8,0.5005]
[1764351731330,0.30715316,3022.9,3022.8,0.5005]
[1764351732604,0.30715316,3022.9,3022.8,0.001]
[1764351733918,3.6152348,3022.9,3022.8,0.001]
[1764351734305,0.30715316,3022.9,3022.8,0.001]
[1764351734650,3.71327836,3023.2,3022.8,0.001]
[1764351734651,3.30794307,3023.1,3022.8,0.001]
[1764351734825,0.30693507,3023.0,3022.8,0.001]
[1764351735028,0.002,3023.0,3022.8,0.001]
[1764351735400,0.002,3023.0,3022.9,0.4995]
[1764351735604,0.30889861,3023.0,3022.9,0.4995]
[1764351735803,0.002,3023.0,3022.9,0.9573]
[1764351736535,0.002,3023.0,3022.9,1.40514252]
[1764351736956,0.002,3023.0,3022.9,0.9573]
[1764351737236,0.002,3023.0,3022.9,4.26538164]
[1764351737404,0.002,3023.0,3022.9,0.9573]
[1764351737606,0.002,3023.0,3022.9,4.26538164]
[1764351737808,0.002,3023.0,3022.9,0.4995]
[1764351738134,0.002,3023.0,3022.9,0.9573]
[1764351738337,0.002,3023.0,3022.9,0.4995]
[1764351738549,0.002,3023.0,3022.9,0.90157789]
[1764351738749,0.002,3023.0,3022.8,0.001]
[1764351741165,0.002,3023.0,3022.9,0.4753]
[1764351741516,0.002,3023.0,3022.9,0.50646305]
[1764351742424,0.002,3023.0,3022.9,0.99896305]
[1764351744646,0.002,3023.0,3022.9,0.50646305]
[1764351745243,0.002,3023.0,3022.9,0.99896305]
[1764351745454,0.002,3023.0,3022.9,1.45096983]
[1764351745758,0.002,3023.0,3022.9,4.75905147]
[1764351746483,0.002,3023.4,3022.9,18.76199631]
[1764351746666,0.002,3023.7,3023.3,7.32008745]
[1764351746839,0.002,3023.7,3023.6,0.4753]
[1764351747240,0.002,3023.7,3023.6,0.9678]
[1764351747873,0.002,3023.7,3023.6,5.00070989]
[1764351748974,0.002,3024.2,3024.0,0.4753]
[1764351749178,0.002,3024.2,3024.1,0.8728]
[1764351749383,0.002,3024.2,3024.1,1.3653]
[1764351749983,0.002,3024.2,3024.1,5.39766306]
[1764351750140,0.002,3024.2,3024.1,6.26811703]
[1764351751180,0.002,3024.2,3024.1,6.05611703]
[1764351751349,0.002,3024.2,3024.1,6.26811703]
[1764351751546,0.002,3024.2,3024.1,7.54213103]
[1764351755191,0.002,3024.2,3024.1,6.26811703]
[1764351755394,0.002,3024.2,3024.1,6.05611703]
[1764351755572,0.002,3024.2,3024.1,6.26811703]
[1764351756682,0.002,3024.6,3024.2,0.72559411]
[1764351756911,0.002,3024.7,3024.6,0.72559411]
[1764351757208,0.002,3024.7,3024.6,1.89329411]
[1764351757570,0.002,3024.7,3024.6,2.0257201]
[1764351758082,0.002,3024.7,3024.6,2.05878232]
[1764351759379,0.002,3024.7,3024.6,5.36500463]
[1764351759591,0.002,3024.7,3024.6,6.89825701]
[1764351759898,0.002,3024.7,3024.6,6.86519479]
[1764351761715,0.002,3025.0,3024.6,13.47763941]
[1764351762033,0.002,3025.0,3024.9,7.86608156]
[1764351762246,0.002,3025.0,3024.9,9.14009556]
[1764351762527,0.002,3025.0,3024.9,11.21514512]
[1764351763821,0.002,3025.0,3024.9,14.52103952]
[1764351766217,0.002,3025.9,3025.0,1.20489411]
[1764351766566,0.002,3025.9,3025.3,7.79228556]
[1764351766846,0.002,3025.9,3025.3,9.54559956]
[1764351767010,0.002,3025.9,3025.3,11.70119952]
[1764351767210,0.002,3025.9,3025.3,11.83357949]
[1764351767611,0.1983,3025.9,3025.3,4.97888804]
[1764351767823,0.1983,3025.9,3025.3,8.31739992]
[1764351768151,0.002,3025.9,3025.3,8.28434535]
[1764351768345,0.002,3025.9,3025.3,8.07234535]
[1764351768587,0.002,3025.9,3025.3,8.28434535]
[1764351769438,0.6817,3025.9,3025.3,7.80794535]
[1764351769637,0.6817,3025.9,3025.3,7.59594535]
[1764351769840,0.6817,3025.9,3025.3,6.94897127]
[1764351770041,0.6817,3025.9,3025.3,7.67456538]
[1764351770740,0.002,3025.8,3025.3,7.67456538]
[1764351771269,0.002,3025.8,3025.3,7.19526538]
[1764351771477,0.002,3025.8,3025.3,5.92125138]
[1764351771971,0.002,3025.8,3025.3,6.87695138]
[1764351772160,0.002,3025.8,3025.3,6.40055138]
[1764351772562,0.002,3025.8,3025.3,6.18955138]
[1764351772763,0.002,3025.8,3025.3,6.40055138]
[1764351773589,0.002,3025.8,3025.3,4.75440599]
[1764351773889,0.002,3025.8,3025.3,4.75139886]
[1764351774193,0.4736,3025.4,3025.3,5.54611286]
[1764351774395,0.002,3025.4,3025.3,5.54611286]
[1764351774688,0.4736,3025.4,3025.3,5.54611286]
[1764351774892,0.4736,3025.4,3025.3,7.08152201]
[1764351775094,0.4736,3025.4,3025.3,7.04846744]
[1764351776795,0.957,3025.4,3025.3,6.32287333]
[1764351777293,0.957,3025.4,3025.3,6.3559279]
[1764351777596,0.957,3025.4,3025.3,1.274014]
[1764351777901,0.957,3025.4,3025.3,4.57947131]
[1764351779197,0.957,3025.4,3025.3,1.274014]
[1764351779767,7.5676961,3025.4,3024.5,3.3072543]